Workbook

Sheet Mittelhilfstabelle
A2: Stunde | B2: Luftfeuchtigkeit | C2: Luftdruck | D2: Taupunkttemperatur | E2: Bewölkung | G2: Stunde | H2: Luftfeuchtigkeit | I2: Luftdruck | J2: Taupunkttemperatur | K2: Bewölkung
A3: 00 | B3: 94 | C3: 1009.8 | D3: 2 | E3: 8 | G3: 00 | H3: 96 | I3: 993.6 | J3: 5.2 | K3: 7
A4: 01 | B4: 93 | C4: 1009.6 | D4: 2.1 | E4: 8 | G4: 01 | H4: 97 | I4: 991.5 | J4: 7.2 | K4: 8
A5: 02 | B5: 93 | C5: 1010.1 | D5: 2.1 | E5: 8 | G5: 02 | H5: 98 | I5: 990.3 | J5: 12.4 | K5: 8
A6: 03 | B6: 94 | C6: 1008.9 | D6: 2.2 | E6: 8 | G6: 03 | H6: 82 | I6: 989 | J6: 13.3 | K6: 7
A7: 04 | B7: 94 | C7: 1009.9 | D7: 2.1 | E7: 8 | G7: 04 | H7: 76 | I7: 989.8 | J7: 12.7 | K7: 2
A8: 05 | B8: 95 | C8: 1009.5 | D8: 2.4 | E8: 8 | G8: 05 | H8: 75 | I8: 989.7 | J8: 12.2 | K8: 6
A9: 06 | B9: 95 | C9: 1008.8 | D9: 2.4 | E9: 8 | G9: 06 | H9: 71 | I9: 989.6 | J9: 11.8 | K9: 6
A10: 07 | B10: 95 | C10: 1008.5 | D10: 2.4 | E10: 8 | G10: 07 | H10: 72 | I10: 990.9 | J10: 11.4 | K10: 1
A11: 08 | B11: 96 | C11: 1009 | D11: 2.8 | E11: 8 | G11: 08 | H11: 69 | I11: 992.2 | J11: 10.8 | K11: 1
A12: 09 | B12: 96 | C12: 1008.6 | D12: 3 | E12: 8 | G12: 09 | H12: 57 | I12: 992.5 | J12: 8.4 | K12: 0
A13: 10 | B13: 96 | C13: 1007.9 | D13: 3.3 | E13: 8 | G13: 10 | H13: 51 | I13: 993.1 | J13: 7.4 | K13: 1
A14: 11 | B14: 96 | C14: 1007.7 | D14: 3.8 | E14: 8 | G14: 11 | H14: 49 | I14: 993.5 | J14: 7.4 | K14: 1
A15: 12 | B15: 95 | C15: 1006.8 | D15: 3.8 | E15: 8 | G15: 12 | H15: 46 | I15: 994.3 | J15: 7.1 | K15: 1
A16: 13 | B16: 94 | C16: 1006.6 | D16: 3.9 | E16: 8 | G16: 13 | H16: 45 | I16: 995.5 | J16: 7.1 | K16: 1
A17: 14 | B17: 95 | C17: 1005.2 | D17: 4.1 | E17: 8 | G17: 14 | H17: 45 | I17: 996.1 | J17: 6.9 | K17: 4
A18: 15 | B18: 95 | C18: 1003.3 | D18: 4.2 | E18: 8 | G18: 15 | H18: 46 | I18: 997 | J18: 6.5 | K18: 6
A19: 16 | B19: 96 | C19: 1001.8 | D19: 4.5 | E19: 8 | G19: 16 | H19: 63 | I19: 999 | J19: 8 | K19: 7
A20: 17 | B20: 96 | C20: 1001.8 | D20: 4.5 | E20: 8 | G20: 17 | H20: 64 | I20: 1001.6 | J20: 6.2 | K20: 8
A21: 18 | B21: 96 | C21: 1000.6 | D21: 4.7 | E21: 8 | G21: 18 | H21: 63 | I21: 1003.5 | J21: 3.9 | K21: 8
A22: 19 | B22: 96 | C22: 999.7 | D22: 4.9 | E22: 8 | G22: 19 | H22: 58 | I22: 1005 | J22: 3.3 | K22: 7
A23: 20 | B23: 96 | C23: 998.4 | D23: 5 | E23: 8 | G23: 20 | H23: 65 | I23: 1006 | J23: 3.3 | K23: 8
A24: 21 | B24: 96 | C24: 997.6 | D24: 5 | E24: 8 | G24: 21 | H24: 68 | I24: 1007.4 | J24: 3.6 | K24: 7
A25: 22 | B25: 96 | C25: 996.4 | D25: 5.2 | E25: 8 | G25: 22 | H25: 70 | I25: 1008.4 | J25: 3.4 | K25: 6
A26: 23 | B26: 96 | C26: 994.8 | D26: 5.4 | E26: 8 | G26: 23 | H26: 68 | I26: 1009.3 | J26: 2.9 | K26: 7
A27: Mittel | B27: =ROUND(AVERAGE(B3:B26),1) -> 95.2 | C27: =ROUND(AVERAGE(C3:C26),1) -> 1005.1 | D27: =AVERAGE(D3:D26) -> 3.575 | E27: =ROUND(AVERAGE(E3:E26),1) -> 8 | G27: Mittel | H27: =ROUND(AVERAGE(H3:H26),1) -> 66.4 | I27: =ROUND(AVERAGE(I3:I26),1) -> 996.6 | J27: =AVERAGE(J3:J26) -> 7.6 | K27: =ROUND(AVERAGE(K3:K26),1) -> 4.9
D29: 2018-10-29 | J29: 2018-10-30
A32: Stunde | B32: Luftfeuchtigkeit | C32: Luftdruck | D32: Taupunkttemperatur | E32: Bewölkung | G32: Stunde | H32: Luftfeuchtigkeit | I32: Luftdruck | J32: Taupunkttemperatur | K32: Bewölkung
A33: 00 | B33: 66 | C33: 1010.2 | D33: 2.2 | E33: 3 | G33: 00 | H33: 83 | I33: 1012.3 | J33: 2.8 | K33: 7
A34: 01 | B34: 66 | C34: 1011.7 | D34: 1.8 | E34: 3 | G34: 01 | H34: 83 | I34: 1012.6 | J34: 2.6 | K34: 8
A35: 02 | B35: 70 | C35: 1012.9 | D35: 0.5 | E35: 1 | G35: 02 | H35: 82 | I35: 1012.3 | J35: 2.2 | K35: 8
A36: 03 | B36: 73 | C36: 1013.8 | D36: 1.5 | E36: 0 | G36: 03 | H36: 82 | I36: 1012.7 | J36: 1.9 | K36: 7
A37: 04 | B37: 78 | C37: 1014.9 | D37: 1.5 | E37: 0 | G37: 04 | H37: 83 | I37: 1012.1 | J37: 1.5 | K37: 8
A38: 05 | B38: 76 | C38: 1015.6 | D38: 1.5 | E38: 0 | G38: 05 | H38: 83 | I38: 1012.8 | J38: 1.5 | K38: 7
A39: 06 | B39: 74 | C39: 1016.3 | D39: 1.4 | E39: 0 | G39: 06 | H39: 82 | I39: 1012.8 | J39: 1.5 | K39: 8
A40: 07 | B40: 74 | C40: 1017.4 | D40: 0.9 | E40: 1 | G40: 07 | H40: 86 | I40: 1012.7 | J40: 1.5 | K40: 8
A41: 08 | B41: 80 | C41: 1018.3 | D41: 1.6 | E41: 1 | G41: 08 | H41: 87 | I41: 1013.1 | J41: 1.8 | K41: 8
A42: 09 | B42: 74 | C42: 1019.2 | D42: 2.9 | E42: 1 | G42: 09 | H42: 86 | I42: 1013.3 | J42: 2 | K42: 8
A43: 10 | B43: 58 | C43: 1019.3 | D43: 2.9 | E43: 1 | G43: 10 | H43: 86 | I43: 1013.2 | J43: 2.3 | K43: 8
A44: 11 | B44: 56 | C44: 1019.7 | D44: 3.3 | E44: 1 | G44: 11 | H44: 85 | I44: 1012.9 | J44: 2.5 | K44: 8
A45: 12 | B45: 52 | C45: 1020.1 | D45: 3.3 | E45: 1 | G45: 12 | H45: 84 | I45: 1012.7 | J45: 2.7 | K45: 8
A46: 13 | B46: 48 | C46: 1020 | D46: 3.1 | E46: 3 | G46: 13 | H46: 82 | I46: 1012.2 | J46: 2.6 | K46: 8
A47: 14 | B47: 50 | C47: 1019.7 | D47: 3.7 | E47: 5 | G47: 14 | H47: 84 | I47: 1011.4 | J47: 2.5 | K47: 8
A48: 15 | B48: 50 | C48: 1019.6 | D48: 2.7 | E48: 4 | G48: 15 | H48: 89 | I48: 1011.1 | J48: 2.4 | K48: 8
A49: 16 | B49: 54 | C49: 1019.6 | D49: 2.4 | E49: 5 | G49: 16 | H49: 91 | I49: 1011.7 | J49: 2.3 | K49: 8
A50: 17 | B50: 58 | C50: 1019.4 | D50: 2.8 | E50: 7 | G50: 17 | H50: 92 | I50: 1011.7 | J50: 1.9 | K50: 8
A51: 18 | B51: 61 | C51: 1019.7 | D51: 2.5 | E51: 6 | G51: 18 | H51: 92 | I51: 1012.2 | J51: 1.4 | K51: 8
A52: 19 | B52: 65 | C52: 1019.5 | D52: 2.7 | E52: 5 | G52: 19 | H52: 93 | I52: 1011.7 | J52: 1.5 | K52: 8
A53: 20 | B53: 72 | C53: 1019 | D53: 2.9 | E53: 3 | G53: 20 | H53: 94 | I53: 1011 | J53: 1.7 | K53: 8
A54: 21 | B54: 78 | C54: 1018.8 | D54: 3.1 | E54: 5 | G54: 21 | H54: 92 | I54: 1010.6 | J54: 1.5 | K54: 8
A55: 22 | B55: 81 | C55: 1018.3 | D55: 3 | E55: 4 | G55: 22 | H55: 93 | I55: 1010.7 | J55: 1.8 | K55: 8
A56: 23 | B56: 85 | C56: 1017.4 | D56: 2.9 | E56: 5 | G56: 23 | H56: 93 | I56: 1010.3 | J56: 1.8 | K56: 8
A57: Mittel | B57: =ROUND(AVERAGE(B33:B56),1) -> 66.6 | C57: =ROUND(AVERAGE(C33:C56),1) -> 1017.5 | D57: =ROUND(AVERAGE(D33:D56),1) -> 2.4 | E57: =ROUND(AVERAGE(E33:E56),1) -> 2.7 | G57: Mittel | H57: =ROUND(AVERAGE(H33:H56),1) -> 87 | I57: =ROUND(AVERAGE(I33:I56),1) -> 1012.1 | J57: =ROUND(AVERAGE(J33:J56),1) -> 2 | K57: =ROUND(AVERAGE(K33:K56),1) -> 7.9
D59: 2018-10-31 | J59: 2018-10-28

Sheet Kurztab.
A2: Wetterwarte: Köttewitz | L2: Monat: | M2: Oktober | R2: Jahr: | U2: 2018
A4: Dat. | B4: TTT | C4: TxTx | D4: TnTn | E4: Tg | F4: Umin. | G4: UU | H4: NN | I4: RRRR | J4: Art | L4: sss | M4: PPPP | N4: eee | O4: fff | R4: Tage mit | V4: fk | W4: Summe
J5: * | O5: Km/h | P5: SS | Q5: Art ( D ) | R5: RR | S5: Ge | T5: Bf6 | U5: Bf8 | V5: Km/h | W5: Gewitter
A6: 01. | B6: 8.5 | C6: 13.2 | D6: 3.1 | E6: 1.7 | F6: 60 | G6: 78 | H6: 5.9 | I6: 1.4 | J6: l | L6: . | M6: 1013.3 | N6: 4.8 | O6: 5 | R6: 1 | V6: 34 | AA6: max >=30,0°C | AB6: max >=25,0°C | AC6: max <0,0°C | AE6: RR >=0,1 mm | AF6: RR >=1,0 mm | AG6: RR >=3,0 mm | AH6: RR >=10,0 mm | AI6: RR >=20,0 mm | AS6: Hellmann
A7: 02. | B7: 8.8 | C7: 11.3 | D7: 5.8 | E7: 5 | F7: 49 | G7: 75 | H7: 7.5 | I7: 0.4 | J7: l | L7: 1 | M7: 1017.3 | N7: 4.3 | O7: 14 | R7: 1 | T7: 1 | V7: 52 | AA7: =COUNTIF(C6:C15,">=30") -> 0 | AB7: =COUNTIF(C6:C15,">=25") -> 0 | AC7: =COUNTIF(C6:C15,"<0") -> 0 | AE7: =COUNTIF(I6:I15,">=0,1") -> 3 | AF7: =COUNTIF(I6:I15,">=1") -> 1 | AG7: =COUNTIF(I6:I15,">=3") -> 0 | AH7: =COUNTIF(I6:I15,">=10") -> 0 | AI7: =COUNTIF(I6:I15,">=20") -> 0 | AS7: 200 cm3
A8: 03. | B8: 11.2 | C8: 14.4 | D8: 9.4 | E8: 7.2 | F8: 56 | G8: 69 | H8: 6.2 | I8: 0.4 | J8: l | L8: 3 | M8: 1019.6 | N8: 5.7 | O8: 14 | R8: 1 | T8: 1 | V8: 52 | AA8: =COUNTIF(C18:C27,">=30") -> 0 | AB8: =COUNTIF(C18:C27,">=25") -> 0 | AC8: =COUNTIF(C18:C27,"<0") -> 0 | AE8: =COUNTIF(I18:I27,">=0,1") -> 1 | AF8: =COUNTIF(I18:I27,">=1") -> 0 | AG8: =COUNTIF(I18:I27,">=3") -> 0 | AH8: =COUNTIF(I18:I27,">=10") -> 0 | AI8: =COUNTIF(I18:I27,">=20") -> 0 | AS8: 11.4
A9: 04. | B9: 11.7 | C9: 16.3 | D9: 7.8 | E9: 6.1 | F9: 54 | G9: 70 | H9: 6.1 | I9: . | L9: 3 | M9: 1026.9 | N9: 6.3 | O9: 4 | V9: 24 | AA9: =COUNTIF(C30:C40,">=30") -> 0 | AB9: =COUNTIF(C30:C40,">=25") -> 0 | AC9: =COUNTIF(C30:C40,"<0") -> 0 | AE9: =COUNTIF(I30:I40,">=0,1") -> 7 | AF9: =COUNTIF(I30:I40,">=1") -> 4 | AG9: =COUNTIF(I30:I40,">=3") -> 2 | AH9: =COUNTIF(I30:I40,">=10") -> 1 | AI9: =COUNTIF(I30:I40,">=20") -> 0
A10: 05. | B10: 12.4 | C10: 19.9 | D10: 5.1 | E10: 2.8 | F10: 43 | G10: 68 | H10: 2.9 | I10: . | L10: 7.8 | M10: 1022.8 | N10: 6.3 | O10: 5 | V10: 29
A11: 06. | B11: 14.8 | C11: 22.1 | D11: 8.8 | E11: 6.1 | F11: 47 | G11: 65 | H11: 4.9 | I11: . | L11: 4.7 | M11: 1013.3 | N11: 8.2 | O11: 7 | V11: 29 | AA11: min <0,0°C | AB11: min <0-10,0°C | AE11: rel.Lf. 14h >=70% | AG11: rel.Lf. 14h <=40%
A12: 07. | B12: 12.4 | C12: 18.3 | D12: 7.4 | E12: 5 | F12: 68 | G12: 78 | H12: 6.2 | I12: . | L12: 0.8 | M12: 1015.6 | N12: 8.9 | O12: 4 | V12: 32 | AA12: =COUNTIF(D6:D15,"<0") -> 0 | AB12: =COUNTIF(D6:D15,"<=-10") -> 0 | AE12: =COUNTIF(F6:F15,">=70") -> 0 | AG12: =COUNTIF(F6:F15,"<=40") -> 0
A13: 08. | B13: 9.7 | C13: 16 | D13: 3.4 | E13: 1.7 | F13: 66 | G13: 82 | H13: 3.6 | I13: . | L13: 3.8 | M13: 1023 | N13: 6.7 | O13: 1 | V13: 11 | AA13: =COUNTIF(D18:D27,"<0") -> 0 | AB13: =COUNTIF(D18:D27,"<=-10") -> 0 | AE13: =COUNTIF(F18:F27,">=70") -> 1 | AG13: =COUNTIF(F18:F27,"<=40") -> 3
A14: 09. | B14: 12.9 | C14: 21 | D14: 7.3 | E14: 5.6 | F14: 58 | G14: 80 | H14: 5.7 | I14: . | L14: 3.8 | M14: 1023.6 | N14: 9.4 | O14: 1 | V14: 16 | AA14: =COUNTIF(D30:D40,"<0") -> 0 | AB14: =COUNTIF(D30:D40,"<=-10") -> 0 | AE14: =COUNTIF(F30:F40,">=70") -> 2 | AG14: =COUNTIF(F30:F40,"<=40") -> 0
A15: 10. | B15: 15.6 | C15: 23.3 | D15: 8.2 | E15: 5 | F15: 51 | G15: 74 | H15: 2.4 | I15: . | L15: 7.1 | M15: 1022.3 | N15: 10.5 | O15: 9 | V15: 34
A16: Su | B16: =SUM(B6:B15) -> 118 | C16: =SUM(C6:C15) -> 175.8 | D16: =SUM(D6:D15) -> 66.3 | E16: =SUM(E6:E15) -> 46.2 | F16: XXX | G16: XXX | H16: XXX | I16: =SUM(I6:I15) -> 2.2 | J16: XX | L16: =SUM(L6:L15) -> 35 | M16: XXX | N16: XXX | O16: XXX | P16: XXX | Q16: X | R16: =SUM(R6:R15) -> 3 | S16: =SUM(S6:S15) -> 0 | T16: =SUM(T6:T15) -> 2 | U16: =SUM(U6:U15) -> 0 | V16: XXX | AA16: ohne Sonne | AB16: Son. 0,1-0,9 | AC16: Son. >=10,0 | AE16: Sch. >=1 cm | AF16: Sch. >=3 cm | AG16: Sch. >=10 cm
A17: Mi | B17: =AVERAGE(B6:B15) -> 11.8 | C17: =AVERAGE(C6:C15) -> 17.58 | D17: 6.63 | E17: 4.62 | F17: 55.2 | G17: 73.9 | H17: 5.14 | I17: XXX | J17: XX | L17: XXX | M17: =AVERAGE(M6:M15) -> 1019.77 | N17: =AVERAGE(N6:N15) -> 7.11 | O17: =AVERAGE(O6:O15) -> 6.4 | P17: =AVERAGE(P6:P15) ->  | Q17: X | R17: XX | S17: XX | T17: XX | U17: XX | V17: =AVERAGE(V6:V15) -> 31.3 | AA17: =COUNTIF(L6:L15,".") -> 1 | AB17: =COUNTIF(L6:L15,"<1") -> 1 | AC17: =COUNTIF(L6:L15,">=10") -> 0 | AE17: =COUNTIF(P6:P15,">=1") -> 0 | AF17: =COUNTIF(P6:P15,">=3") -> 0 | AG17: =COUNTIF(P6:P15,">=10") -> 0
A18: 11. | B18: 18.3 | C18: 24.3 | D18: 14.1 | E18: 11.1 | F18: 35 | G18: 58 | H18: 0.6 | I18: . | L18: 6.4 | M18: 1018.2 | N18: 9.4 | O18: 11 | T18: 1 | V18: 45 | AA18: =COUNTIF(L18:L27,".") -> 1 | AB18: =COUNTIF(L18:L27,"<1") -> 0 | AC18: =COUNTIF(L18:L27,">=10") -> 0 | AE18: =COUNTIF(P18:P27,">=1") -> 0 | AF18: =COUNTIF(P18:P27,">=3") -> 0 | AG18: =COUNTIF(P18:P27,">=10") -> 0
A19: 12. | B19: 16.7 | C19: 24.3 | D19: 12.1 | E19: 7.8 | F19: 45 | G19: 65 | H19: 0.8 | I19: . | L19: 6.2 | M19: 1022.9 | N19: 10 | O19: 6 | V19: 24 | AA19: =COUNTIF(L30:L40,".") -> 4 | AB19: =COUNTIF(L30:L40,"<1") -> 3 | AC19: =COUNTIF(L30:L40,">=10") -> 0 | AE19: =COUNTIF(P30:P40,">=1") -> 0 | AF19: =COUNTIF(P30:P40,">=3") -> 0 | AG19: =COUNTIF(P30:P40,">=10") -> 0
A20: 13. | B20: 16.1 | C20: 22.6 | D20: 10.6 | E20: 7.2 | F20: 43 | G20: 65 | H20: 0 | I20: . | L20: 6.2 | M20: 1024.1 | N20: 9 | O20: 7 | V20: 29
A21: 14. | B21: 17.3 | C21: 23.9 | D21: 12.2 | E21: 8.9 | F21: 35 | G21: 54 | H21: 0 | I21: . | L21: 6.2 | M21: 1017 | N21: 7.5 | O21: 10 | T21: 1 | V21: 39 | AA21: Max TT | AB21: Max TxTx | AC21: Min TgTg | AE21: Max RR
A22: 15. | B22: 15.7 | C22: 21.2 | D22: 11.3 | E22: 8.3 | F22: 33 | G22: 49 | H22: 4.1 | I22: . | L22: 1.3 | M22: 1016.6 | N22: 4.6 | O22: 8 | V22: 37 | AA22: =MAX(B6:B15,B18:B27,B30:B40) -> 18.3 | AB22: =MAX(C6:C15,C18:C27,C30:C40) -> 24.3 | AC22: =MIN(E6:E15,E18:E27,E30:E40) -> -0.6 | AE22: =MAX(I6:I15,I18:I27,I30:I40) -> 13.4
A23: 16. | B23: 15.2 | C23: 21.4 | D23: 9 | E23: 6.7 | F23: 43 | G23: 60 | H23: 3 | I23: . | L23: 6.6 | M23: 1018.2 | N23: 7.3 | O23: 6 | V23: 21 | AA23: Min TT | AB23: Min TnTn | AC23: Min U14 | AE23: Max SS
A24: 17. | B24: 12.7 | C24: 20.6 | D24: 6.9 | E24: 5 | F24: 50 | G24: 73 | H24: 0.6 | I24: . | L24: 6.2 | M24: 1019.4 | N24: 7.6 | O24: 2 | V24: 15 | AA24: =MIN(B6:B15,B18:B27,B30:B40) -> 3.9 | AB24: =MIN(D6:D15,D18:D27,D30:D40) -> 2.1 | AC24: =MIN(F6:F15,F18:F27,F30:F40) -> 33 | AE24: =MAX(P6:P15,P18:P27,P30:P40) -> 0
A25: 18. | B25: 11.9 | C25: 17.9 | D25: 7.2 | E25: 5 | F25: 63 | G25: 82 | H25: 2.8 | I25: 0.3 | J25: l | L25: 5.7 | M25: 1020.9 | N25: 8.8 | O25: 3 | R25: 1 | V25: 24
A26: 19. | B26: 11.5 | C26: 12.3 | D26: 10.5 | E26: 9.4 | F26: 89 | G26: 93 | H26: 8 | I26: . | L26: . | M26: 1024.5 | N26: 10.4 | O26: 1 | V26: 15
A27: 20. | B27: 9.9 | C27: 12.8 | D27: 7.8 | E27: 6.7 | F27: 63 | G27: 81 | H27: 7 | I27: . | L27: 1.8 | M27: 1028.1 | N27: 6.1 | O27: 3 | V27: 23
A28: Su | B28: =SUM(B18:B27) -> 145.3 | C28: =SUM(C18:C27) -> 201.3 | D28: =SUM(D18:D27) -> 101.7 | E28: =SUM(E18:E27) -> 76.1 | F28: XXX | G28: XXX | H28: XXX | I28: =SUM(I18:I27) -> 0.3 | J28: XX | L28: =SUM(L18:L27) -> 46.6 | M28: XXX | N28: XXX | O28: XXX | P28: XXX | Q28: X | R28: =SUM(R18:R27) -> 1 | S28: =SUM(S18:S27) -> 0 | T28: =SUM(T18:T27) -> 2 | U28: =SUM(U18:U27) -> 0 | V28: XXX
A29: Mi | B29: =AVERAGE(B18:B27) -> 14.53 | C29: =AVERAGE(C18:C27) -> 20.13 | D29: 10.17 | E29: 7.61 | F29: 49.9 | G29: 68 | H29: 2.69 | I29: XXX | J29: XX | L29: XXX | M29: =AVERAGE(M18:M27) -> 1020.99 | N29: =AVERAGE(N18:N27) -> 8.07 | O29: =AVERAGE(O18:O27) -> 5.7 | P29: =AVERAGE(P18:P27) ->  | Q29: X | R29: XX | S29: XX | T29: XX | U29: XX | V29: =AVERAGE(V18:V27) -> 27.2
A30: 21. | B30: 8.8 | C30: 13.4 | D30: 2.8 | E30: 1.1 | F30: 57 | G30: 78 | H30: 4.3 | I30: . | L30: 2.8 | M30: 1028.9 | N30: 5.2 | O30: 1 | V30: 15
A31: 22. | B31: 6.7 | C31: 14.1 | D31: 2.1 | E31: -0.6 | F31: 64 | G31: 88 | H31: 5 | I31: 1.8 | J31: l | L31: 0.4 | M31: 1028.2 | N31: 4.7 | O31: 3 | R31: 1 | V31: 37
A32: 23. | B32: 8.1 | C32: 10.4 | D32: 4.8 | E32: 2.8 | F32: 67 | G32: 84 | H32: 6.5 | I32: 8.6 | J32: l | L32: . | M32: 1018.7 | N32: 5.3 | O32: 16 | R32: 1 | T32: 1 | V32: 58
A33: 24. | B33: 9.3 | C33: 11.1 | D33: 7.6 | E33: 5.6 | F33: 54 | G33: 80 | H33: 6.4 | I33: 1.7 | J33: l | L33: 1.2 | M33: 1014.2 | N33: 5.9 | O33: 16 | R33: 1 | T33: 1 | U33: 1 | V33: 79
A34: 25. | B34: 11.4 | C34: 13.9 | D34: 8.4 | E34: 7.8 | F34: 69 | G34: 82 | H34: 7.6 | I34: 0.3 | J34: l | L34: 0.1 | M34: 1013.7 | N34: 8.4 | O34: 13 | R34: 1 | T34: 1 | V34: 55
A35: 26. | B35: 10.3 | C35: 13.3 | D35: 8.3 | E35: 7.8 | F35: 64 | G35: 78 | H35: 7.2 | I35: 0 | J35: l | L35: 0.4 | M35: 1008.7 | N35: 6.5 | O35: 6 | V35: 26
A36: 27. | B36: 7.8 | C36: 10 | D36: 5.1 | E36: 4.4 | F36: 64 | G36: 72 | H36: 7.5 | I36: . | L36: . | M36: 1007.1 | N36: 3.2 | O36: 6 | V36: 34
A37: 28. | B37: 3.9 | C37: 5.6 | D37: 2.4 | E37: 2.2 | F37: 82 | G37: 87 | H37: 7.9 | I37: 13.4 | J37: l | L37: . | M37: 1012.1 | N37: 2 | O37: 6 | R37: 1 | V37: 29
A38: 29. | B38: 4.3 | C38: 5.9 | D38: 2.8 | E38: 2.8 | F38: 92 | G38: 95 | H38: 8 | I38: 0.4 | J38: l | L38: . | M38: 1005.1 | N38: 3.6 | O38: 3 | R38: 1 | V38: 19
A39: 30. | B39: 14.2 | C39: 19.5 | D39: 5.7 | E39: 4.4 | F39: 43 | G39: 66 | H39: 4.9 | I39: 0.1 | J39: l | L39: 4.3 | M39: 996.6 | N39: 7.6 | O39: 14 | R39: 1 | T39: 1 | V39: 55
A40: 31. | B40: 8.5 | C40: 14.2 | D40: 4.5 | E40: 1.7 | F40: 46 | G40: 67 | H40: 2.7 | I40: . | L40: 4.9 | M40: 1017.5 | N40: 2.4 | O40: 6 | V40: 31
A41: Su | B41: =SUM(B30:B40) -> 93.3 | C41: =SUM(C30:C40) -> 131.4 | D41: =SUM(D30:D40) -> 54.5 | E41: =SUM(E30:E40) -> 40 | F41: XXX | G41: XXX | H41: XXX | I41: =SUM(I30:I40) -> 26.3 | J41: XX | L41: =SUM(L30:L40) -> 14.1 | M41: XXX | N41: XXX | O41: XXX | P41: XXX | Q41: X | R41: =SUM(R30:R40) -> 7 | S41: =SUM(S30:S40) -> 0 | T41: =SUM(T30:T40) -> 4 | U41: =SUM(U30:U40) -> 1 | V41: XXX
A42: Mi | B42: =AVERAGE(B30:B40) -> 8.481818182 | C42: 11.94545455 | D42: 4.954545455 | E42: 3.636363636 | F42: 63.81818182 | G42: 79.72727273 | H42: 6.181818182 | I42: XXX | J42: XX | L42: XXX | M42: =AVERAGE(M30:M40) -> 1013.709091 | N42: =AVERAGE(N30:N40) -> 4.981818182 | O42: =AVERAGE(O30:O40) -> 8.181818182 | P42: =AVERAGE(P30:P40) ->  | Q42: X | R42: XX | S42: XX | T42: XX | U42: XX | V42: =AVERAGE(V30:V40) -> 39.81818182
A43: MSu | B43: =SUM(B16+B28+B41) -> 356.6 | C43: =SUM(C16+C28+C41) -> 508.5 | D43: =SUM(D16+D28+D41) -> 222.5 | E43: =SUM(E16+E28+E41) -> 162.3 | F43: XXX | G43: XXX | H43: XXX | I43: =SUM(I16+I28+I41) -> 28.8 | J43: XX | L43: =SUM(L16+L28+L41) -> 95.7 | M43: XXX | N43: XXX | O43: XXX | P43: XXX | Q43: X | R43: =SUM(R16+R28+R41) -> 11 | S43: =SUM(S16+S28+S41) -> 0 | T43: =SUM(T16+T28+T41) -> 8 | U43: =SUM(U16+U28+U41) -> 1 | V43: XXX
A44: MMi | B44: =AVERAGE(B6:B15,B18:B27,B30:B40) -> 11.50322581 | C44: 16.40322581 | D44: 7.177419355 | E44: 5.235483871 | F44: 56.5483871 | G44: 74.06451613 | H44: 4.719354839 | I44: XXXXX | J44: XX | L44: XXXX | M44: =AVERAGE(M6:M15,M18:M27,M30:M40) -> 1018.012903 | N44: =AVERAGE(N6:N15,N18:N27,N30:N40) -> 6.664516129 | O44: =AVERAGE(O6:O15,O18:O27,O30:O40) -> 6.806451613 | P44: =AVERAGE(P17,P29,P42) ->  | Q44: X | R44: XX | S44: XX | T44: XX | U44: XX | V44: =AVERAGE(V17,V29,V42) -> 32.77272727
B46: Norm | C46: % v N.- | D46: Abw. | E46: Zahl der Tage | L46: Niederschlag mm | P46: Sonnensch.-dauer Std
B47: wert | C47: wert | D47: K | E47: Max.d.Lufttemp.°C | L47: >/= 0,1 | O47: =SUM(AE7:AE9) -> 11 | P47: ohne Sonne | V47: =SUM(AA17:AA19) -> 6
A48: TTT | B48: 9.8 | C48: XXXX | D48: =SUM(B44-B48) -> 1.703225806 | E48: Tropentag/Hitzetag | I48: =SUM(AA7:AA9) -> 0 | L48: >/= 1,0 | O48: =SUM(AF7:AF9) -> 5 | P48: 0,1 bis 0,9 | V48: =SUM(AB17:AB19) -> 4
A49: RRR | B49: 43 | C49: =SUM(I43*100/B49) -> 66.97674419 | D49: XXXX | E49: Sommertag | I49: =SUM(AB7:AB9) -> 0 | L49: >/= 3,0 | O49: =SUM(AG7:AG9) -> 2 | P49: >/= 10,0 | V49: =SUM(AC17:AC19) -> 0
A50: sss | B50: 120 | C50: =SUM(L43*100/B50) -> 79.75 | D50: XXXX | E50: Eistag | I50: =SUM(AC7:AC9) -> 0 | L50: >/=10,0 | O50: =SUM(AH7:AH9) -> 1 | P50: Schneedecke cm
A51: astr. | D51: XXXX | E51: Polartag | I51: 0 | L51: >/= 20,0 | O51: =SUM(AI7:AI9) -> 0 | P51: >/= 1 | V51: =SUM(AE17:AE19) -> 0
A52: mgl. | B52: 333 | C52: =SUM(L43*100/B52) -> 28.73873874 | D52: XXXX | E52: Min.d.Lufttemp.°C | L52: Rel. Luftfeuchte 14 Uhr | P52: >/= 3 | V52: =SUM(AF17:AF19) -> 0
A53: sss | D53: XXXX | E53: Frosttag | I53: =SUM(AA12:AA14) -> 0 | L53: >/=70% | O53: =SUM(AE12:AE14) -> 3 | P53: >/= 10 | V53: =SUM(AG17:AG19) -> 0
E54: Tropennacht | I54: 0 | L54: </=40% | O54: =SUM(AG12:AG14) -> 3
E57: Unter "Tage mit" sind die Angaben Bft 6 & Bft 8 nicht 10 min. - Mittel sonder 2,5 s - Werte.
E58: Wenn ein Wert auch mit einem 10 min. - Wert erreicht wird, erfolgt eine rote Markierung.
E59: Dies gilt rückwirkend bis November 2012.
F113: Tage mit Bft 6 /8 eigentlich in 10 min. - Mittel

Sheet Sichtst.
E1: Sichtweitenstatistik
B5: Wetterstation: Köttewitz | F5: Monat: | G5: Oktober | K5: Jahr: | L5: 2018
A7: Dat. | B7: Nebeldauer | C7: Nebel | D7: Dunst | E7: Sicht | F7: Sicht | G7: Sicht | H7: Sicht
B8: in St. u. Min. | E8: mittel | F8: normal | G8: gut | H8: sehr gut
A9: 01. | F9: 1 | G9: 1 | N9: =IF(ISNUMBER(B9),B9*24," ") ->  | O9: =IF(ISNUMBER(N9),IF(N9<1,1," ")," ") ->  | P9: =IF(ISNUMBER(N9),IF(N9<8,2," ")," ") ->  | Q9: =IF(ISNUMBER(N9),IF(N9<24,3," ")," ") ->  | R9: =MIN(O9:Q9) -> 0
A10: 02. | E10: 1 | F10: 1 | G10: 1 | R10: 0
A11: 03. | F11: 1 | R11: 0
A12: 04. | F12: 1 | R12: 0
A13: 05. | F13: 1 | R13: 0
A14: 06. | F14: 1 | R14: 0
A15: 07. | E15: 1 | F15: 1 | R15: 0
A16: 08. | F16: 1 | R16: 0
A17: 09. | D17: 1 | E17: 1 | F17: 1 | R17: 0
A18: 10. | E18: 1 | F18: 1 | R18: 0
A19: 11. | F19: 1 | R19: 0
A20: 12. | F20: 1 | R20: 0
A21: 13. | F21: 1 | R21: 0
A22: 14. | F22: 1 | R22: 0
A23: 15. | F23: 1 | R23: 0
A24: 16. | F24: 1 | R24: 0
A25: 17. | F25: 1 | R25: 0
A26: 18. | B26: 00:30:00 | C26: 1 | D26: 1 | E26: 1 | F26: 1 | N26: 0.5 | O26: 1 | P26: 2 | Q26: 3 | R26: 1
A27: 19. | B27: 11:30:00 | C27: 1 | D27: 1 | E27: 1 | F27: 1 | N27: 11.5 | Q27: 3 | R27: 3
A28: 20. | E28: 1 | F28: 1 | R28: 0
A29: 21. | F29: 1 | R29: 0
A30: 22. | D30: 1 | E30: 1 | F30: 1 | R30: 0
A31: 23. | D31: 1 | E31: 1 | F31: 1 | R31: 0
A32: 24. | D32: 1 | E32: 1 | F32: 1 | G32: 1 | R32: 0
A33: 25. | D33: 1 | E33: 1 | F33: 1 | R33: 0
A34: 26. | E34: 1 | F34: 1 | R34: 0
A35: 27. | E35: 1 | F35: 1 | G35: 1
A36: 28. | D36: 1 | E36: 1 | F36: 1
A37: 29. | D37: 1 | E37: 1 | F37: 1
A38: 30. | D38: 1 | E38: 1 | F38: 1 | G38: 1 | H38: 1
A39: 31. | F39: 1 | G39: 1 | H39: 1
A40: Su. | B40: =SUM(B9:B39) -> 12:00:00 | C40: 2 | D40: 10 | E40: 16 | F40: 31 | G40: 6 | H40: 2
B42: Anzahl der Nebeltage : | E42: =SUM(C40) -> 2
B43: Anzahl der Tage Sicht >= 50 km : | E43: =SUM(G40) -> 6

Sheet Monatsdiagramm
A1: Klimadiagramm | C1: Wetterstation Köttewitz | I1: (214 m ü. NHN)
A3: Oktober 2018
C5: aktuell | D5: langj. Mittel | E5: Abw. vom lj. Mittel
B6: höchste Temperatur (°C): | C6: =MAX('Daten für Diagr.'!C2:C32) -> 24.3 | D6: am | E6: 11./12.10.18
B7: mittlere Temperatur (°C): | C7: ='Daten für Diagr.'!B33 -> 11.50322581 | D7: =Kurztab.!B48 -> 9.8 | E7: =C7-D7 -> 1.703225806 | F7: K
B8: tiefste Temperatur (°C): | C8: =MIN('Daten für Diagr.'!D2:D32) -> 2.1 | D8: am | E8: 2018-10-22
B9: Niederschlagshöhe (mm): | C9: =Kurztab.!I43 -> 28.8 | D9: =Kurztab.!B49 -> 43 | E9: =100/D9*C9 -> 66.97674419 | F9: %
B10: Sonnenscheindauer (Std.)*: | C10: =Kurztab.!L43 -> 95.7 | D10: =Kurztab.!B50 -> 120 | E10: =100/D10*C10 -> 79.75 | F10: %
A66: *Die Wetterstation kann, durch geographische Hindernisse, nicht die maximal mögliche Sonnenscheindauer aufzeichnen. Es gilt ein Übergangsprozentsatz von:
A67: Dez 30 %; Okt/Nov & Jan/Feb 40 %; Mär & Sep 65 %; Apr & Aug 80 %; Mai - Jul 90 %. Durch Baumfällarbeiten seit Orkan Herwart (Okt 2017) Okt & Feb 50 %.
A68: Diese Werte entsprechend annähernd 100 % (Normalwert Köttewitz). Nach 10 Jahren erfolgt die Umstellung des Prozentsatzes nach der örtlichen Aufzeichnung.

Sheet Daten für Diagr.
B1: Td | C1: Tmax | D1: Tmin | E1: RR | F1: Schnee | G1: Sonne | H1: Luftdr. | I1: MWT | J1: GWL | K1: Name | L1: Sonstiges
A2: 2018-10-01 | B2: 8.5 | C2: 13.2 | D2: 3.1 | E2: 1.4 | H2: 1013.3 | I2: 12.05 | J2: NWz | K2: T Jessika | L2: Von 17:00 Uhr- 17:39 Uhr mäßiger Regen, unterbrochen (WW 62). Von 18:00 Uhr - 18:55 Uhr leichter Regen (WW 61).
A3: 2018-10-02 | B3: 8.8 | C3: 11.3 | D3: 5.8 | E3: 0.4 | G3: 1 | H3: 1017.3 | I3: 11.9 | L3: Gegen 13:40 Uhr leichter Regenschauer (WW 80). Um 04:40 Uhr mäßiger Regen (WW 63). Abends leichter Regen (WW 61).
A4: 2018-10-03 | B4: 11.2 | C4: 14.4 | D4: 9.4 | E4: 0.4 | G4: 3 | H4: 1019.6 | I4: 11.75 | J4: NWa | K4: H Ulf | L4: Von 08:30 Uhr - 08:49 Uhr leichter Regenschauer (WW 80).
A5: 2018-10-04 | B5: 11.7 | C5: 16.3 | D5: 7.8 | G5: 3 | H5: 1026.9 | I5: 11.6
A6: 2018-10-05 | B6: 12.4 | C6: 19.9 | D6: 5.1 | G6: 7.8 | H6: 1022.8 | I6: 11.45 | J6: Sa
A7: 2018-10-06 | B7: 14.8 | C7: 22.1 | D7: 8.8 | G7: 4.7 | H7: 1013.3 | I7: 11.3 | J7: TrW | K7: T Liangyu
A8: 2018-10-07 | B8: 12.4 | C8: 18.3 | D8: 7.4 | G8: 0.8 | H8: 1015.6 | I8: 11.15 | J8: BM | K8: H Viktor
A9: 2018-10-08 | B9: 9.7 | C9: 16 | D9: 3.4 | G9: 3.8 | H9: 1023 | I9: 11
A10: 2018-10-09 | B10: 12.9 | C10: 21 | D10: 7.3 | G10: 3.8 | H10: 1023.6 | I10: 10.85 | J10: Sa
A11: 2018-10-10 | B11: 15.6 | C11: 23.3 | D11: 8.2 | G11: 7.1 | H11: 1022.3 | I11: 10.7
A12: 2018-10-11 | B12: 18.3 | C12: 24.3 | D12: 14.1 | G12: 6.4 | H12: 1018.2 | I12: 10.55
A13: 2018-10-12 | B13: 16.7 | C13: 24.3 | D13: 12.1 | G13: 6.2 | H13: 1022.9 | I13: 10.4
A14: 2018-10-13 | B14: 16.1 | C14: 22.6 | D14: 10.6 | G14: 6.2 | H14: 1024.1 | I14: 10.25
A15: 2018-10-14 | B15: 17.3 | C15: 23.9 | D15: 12.2 | G15: 6.2 | H15: 1017 | I15: 10.1
A16: 2018-10-15 | B16: 15.7 | C16: 21.2 | D16: 11.3 | G16: 1.3 | H16: 1016.6 | I16: 9.95
A17: 2018-10-16 | B17: 15.2 | C17: 21.4 | D17: 9 | G17: 6.6 | H17: 1018.2 | I17: 9.8
A18: 2018-10-17 | B18: 12.7 | C18: 20.6 | D18: 6.9 | G18: 6.2 | H18: 1019.4 | I18: 9.65
A19: 2018-10-18 | B19: 11.9 | C19: 17.9 | D19: 7.2 | E19: 0.3 | G19: 5.7 | H19: 1020.9 | I19: 9.5 | J19: BM | K19: H Wolfgang
A20: 2018-10-19 | B20: 11.5 | C20: 12.3 | D20: 10.5 | H20: 1024.5 | I20: 9.35
A21: 2018-10-20 | B21: 9.9 | C21: 12.8 | D21: 7.8 | G21: 1.8 | H21: 1028.1 | I21: 9.2
A22: 2018-10-21 | B22: 8.8 | C22: 13.4 | D22: 2.8 | G22: 2.8 | H22: 1028.9 | I22: 9.05
A23: 2018-10-22 | B23: 6.7 | C23: 14.1 | D23: 2.1 | E23: 1.8 | G23: 0.4 | H23: 1028.2 | I23: 8.9 | J23: NWa | K23: H Xerxes | L23: Zwischen 15:30 Uhr - 17:29 Uhr leichter Sprühregen bis mäßiger Regen (WW 51 - 63). Gegen 14:00 Uhr leichter Sprühregen (WW 51).
A24: 2018-10-23 | B24: 8.1 | C24: 10.4 | D24: 4.8 | E24: 8.6 | H24: 1018.7 | I24: 8.75 | J24: NWz | K24: T Siglinde | L24: Von 12:40 Uhr - 12:49 Uhr starker Regen (WW 65). Von 12:30 Uhr - 12:39 Uhr; 20:30 Uhr - 23:59 Uhr mäßiger Regen (WW 63).
A25: 2018-10-24 | B25: 9.3 | C25: 11.1 | D25: 7.6 | E25: 1.7 | G25: 1.2 | H25: 1014.2 | I25: 8.6 | L25: Von 00:00 Uhr - 08:09 Uhr Dauerregen, teils stark (WW 61-65).
A26: 2018-10-25 | B26: 11.4 | C26: 13.9 | D26: 8.4 | E26: 0.3 | G26: 0.1 | H26: 1013.7 | I26: 8.45 | K26: T Tina | L26: Von 00:20 Uhr - 02:19 Uhr mäßiger Regen (WW 63). Abends leichter Sprühregen (WW 51).
A27: 2018-10-26 | B27: 10.3 | C27: 13.3 | D27: 8.3 | G27: 0.4 | H27: 1008.7 | I27: 8.3 | J27: TrW | K27: T Uta | L27: Gegen 01:20 Uhr leichter Regenschauer (WW 81). Vormittags leichter Sprühregen (WW 51).
A28: 2018-10-27 | B28: 7.8 | C28: 10 | D28: 5.1 | H28: 1007.1 | I28: 8.15 | L28: Gegen 08:00 Uhr leichter Sprühregen (WW 51).
A29: 2018-10-28 | B29: 3.9 | C29: 5.6 | D29: 2.4 | E29: 13.4 | H29: 1012.1 | I29: 8 | K29: T Vaia | L29: Von 14:20 Uhr - 23:59 Uhr Dauerregen (WW 61-65), Gegen 20:00 Uhr mit Schnee (WW 68), danach Sprühregen (WW 51-53).
A30: 2018-10-29 | B30: 4.3 | C30: 5.9 | D30: 2.8 | E30: 0.4 | H30: 1005.1 | I30: 7.85 | L30: Von 00:00 Uhr - 15:59 Uhr leichter Sprühregen (WW 51).
A31: 2018-10-30 | B31: 14.2 | C31: 19.5 | D31: 5.7 | E31: 0.1 | G31: 4.3 | H31: 996.6 | I31: 7.7 | L31: Gegen 17:30 Uhr leichter Regen (WW 61).
A32: 2018-10-31 | B32: 8.5 | C32: 14.2 | D32: 4.5 | G32: 4.9 | H32: 1017.5 | I32: 7.55 | K32: T Wenke
A33: Durchschnitt | B33: =AVERAGE(B2:B32) -> 11.50322581 | C33: =AVERAGE(C2:C32) -> 16.40322581 | D33: =AVERAGE(D2:D32) -> 7.177419355 | E33: - | G33: =AVERAGE(G2:G32) -> 3.828 | H33: =AVERAGE(H2:H32) -> 1018.012903 | I33: =AVERAGE(I2:I32) -> 9.8
A34: Mittel | B34: 9.8 | E34: 43 | F34: - | G34: 120 | H34: 1017.2
A90: 1
A91: 2
A92: 3
A93: 4
A94: 5
A95: 6
A96: 7
A97: 8
A98: 9
A99: 10
A100: 11
A101: 12
A102: 13
A103: 14
A104: 15
A105: 16
A106: 17
A107: 18
A108: 19
A109: 20
A110: 21
A111: 22
A112: 23
A113: 24
A114: 25
A115: 26
A116: 27
A117: 28
A118: 29
A119: 30
A120: 31

Sheet Erdboden
F1: Erdbodenstatistik
B3: Wetterstation: | C3: Köttewitz | E3: Monat: | F3: Oktober | J3: Jahr: | K3: 2018
A5: Dat. | B5: Temperatur | C5: Temperatur | D5: Temperatur | E5: Temperatur | F5: NN | G5: 0 °C - Grenze | H5: 5 °C - Grenze | I5: 10 °C - Grenze | J5: 15 °C - Grenze | K5: 20 °C - Grenze
B6: 5 cm | C6: -10 cm | D6: - 20 cm | E6: - 35 cm
A7: 01. | B7: 5,6 °C/15,6 °C/7,8 °C | C7: 6,7 °C/11,7 °C/10,0 °C | D7: 7,8 °C/10,6 °C/10,6 °C | E7: 10,6 °C/10,6 °C/10,6 °C | F7: n | G7: > 50 cm | H7: > 50 cm | I7: < 22 > 50 cm
A8: 02. | B8: 6,1 °C/12,8 °C/9,4 °C | C8: 8,3 °C/12,2 °C/10,6 °C | D8: 9,4 °C/11,1 °C/10,6 °C | E8: 10,6 °C/10,6 °C/11,1 °C | F8: t | G8: > 50 cm | H8: > 50 cm | I8: < 4 > 50 cm
A9: 03. | B9: 10,0 °C/14,4 °C/8,9 °C | C9: 8,9 °C/12,8 °C/10,6 °C | D9: 9,4 °C/11,7 °C/11,1 °C | E9: 11,1 °C/11,1 °C/11,1 °C | F9: n | G9: > 50 cm | H9: > 50 cm | I9: > 50 cm
A10: 04. | B10: 7,2 °C/17,8 °C/10,6 °C | C10: 8,9 °C/14,4 °C/11,7 °C | D10: 10,0 °C/12,8 °C/11,7 °C | E10: 11,1 °C/11,1 °C/11,7 °C | F10: n | G10: > 50 cm | H10: > 50 cm | I10: > 50 cm
A11: 05. | B11: 4,4 °C/18,3 °C/11,1 °C | C11: 7,8 °C/15,0 °C/11,1 °C | D11: 9,4 °C/12,8 °C/11,7 °C | E11: 11,1 °C/11,1 °C/11,7 °C | F11: n | G11: > 50 cm | H11: > 50 cm | I11: > 50 cm
A12: 06. | B12: 10,0 °C/20,0 °C/12,8 °C | C12: 8,3 °C/14,4 °C/12,8 °C | D12: 9,4 °C/12,8 °C/12,2 °C | E12: 11,1 °C/11,1 °C/11,1 °C | F12: n | G12: > 50 cm | H12: > 50 cm | I12: > 50 cm
A13: 07. | B13: 9,4 °C/14,4 °C/10,0 °C | C13: 10,6 °C/13,3 °C/12,2 °C | D13: 11,1 °C/12,8 °C/12,2 °C | E13: 11,1 °C/11,7 °C/11,7 °C | F13: n | G13: > 50 cm | H13: > 50 cm | I13: > 50 cm
A14: 08. | B14: 5,0 °C/15,6 °C/6,7 °C | C14: 8,9 °C/13,9 °C/11,1 °C | D14: 10,0 °C/12,2 °C/11,7 °C | E14: 11,1 °C/11,1 °C/11,1 °C | F14: n | G14: > 50 cm | H14: > 50 cm | I14: < 3 > 50 cm
A15: 09. | B15: 6,7 °C/20,6 °C/7,8 °C | C15: 8,9 °C/14,4 °C/11,7 °C | D15: 10,0 °C/12,8 °C/12,2 °C | E15: 11,1 °C/11,1 °C/11,7 °C | F15: n | G15: > 50 cm | H15: > 50 cm | I15: > 50 cm
A16: 10. | B16: 6,7 °C/22,2 °C/16,1 °C | C16: 9,4 °C/15,0 °C/13,3 °C | D16: 10,6 °C/13,3 °C/13,3 °C | E16: 11,1 °C/11,1 °C/11,7 °C | F16: n | G16: > 50 cm | H16: > 50 cm | I16: > 50 cm
A17: 11. | B17: 13,3 °C/22,2 °C/16,1 °C | C17: 11,7 °C/16,1 °C/13,9 °C | D17: 11,7 °C/14,4 °C/13,3 °C | E17: 11,7 °C/11,7 °C/12,2 °C | F17: h | G17: > 50 cm | H17: > 50 cm | I17: > 50 cm | J17: < 5 > 50 cm
A18: 12. | B18: 10,6 °C/22,2 °C/10,6 °C | C18: 11,1 °C/16,1 °C/13,3 °C | D18: 11,7 °C/14,4 °C/13,3 °C | E18: 12,2 °C/12,2 °C/12,2 °C | F18: h | G18: > 50 cm | H18: > 50 cm | I18: > 50 cm
A19: 13. | B19: 8,9 °C/21,1 °C/13,9 °C | C19: 10,6 °C/16,1 °C/13,3 °C | D19: 11,7 °C/13,9 °C/13,3 °C | E19: 12,2 °C/12,2 °C/12,2 °C | F19: h | G19: > 50 cm | H19: > 50 cm | I19: > 50 cm
A20: 14. | B20: 12,8 °C/22,2 °C/15,0 °C | C20: 11,1 °C/16,1 °C/13,3 °C | D20: 11,7 °C/13,9 °C/13,3 °C | E20: 12,2 °C/12,2 °C/12,2 °C | F20: h | G20: > 50 cm | H20: > 50 cm | I20: > 50 cm | J20: < 2 > 50 cm
A21: 15. | B21: 11,1 °C/20,0 °C/15,0 °C | C21: 10,6 °C/13,9 °C/12,8 °C | D21: 11,7 °C/12,8 °C/12,8 °C | E21: 12,2 °C/11,7 °C/12,2 °C | F21: n | G21: > 50 cm | H21: > 50 cm | I21: > 50 cm
A22: 16. | B22: 12,2 °C/20,0 °C/10,0 °C | C22: 12,2 °C/16,1 °C/12,8 °C | D22: 12,2 °C/13,9 °C/12,8 °C | E22: 12,2 °C/12,2 °C/12,2 °C | F22: n | G22: > 50 cm | H22: > 50 cm | I22: > 50 cm
A23: 17. | B23: 5,6 °C/19,4 °C/8,3 °C | C23: 10,0 °C/14,4 °C/11,7 °C | D23: 11,1 °C/13,3 °C/12,2 °C | E23: 12,2 °C/12,2 °C/12,2 °C | F23: h | G23: > 50 cm | H23: > 50 cm | I23: > 50 cm
A24: 18. | B24: 7,2 °C/17,2 °C/11,7 °C | C24: 9,4 °C/13,9 °C/12,2 °C | D24: 10,6 °C/12,8 °C/12,2 °C | E24: 12,2 °C/12,2 °C/12,2 °C | F24: n | G24: > 50 cm | H24: > 50 cm | I24: > 50 cm
A25: 19. | B25: 11,1 °C/12,2 °C/10,6 °C | C25: 12,2 °C/12,8 °C/12,2 °C | D25: 12,2 °C/12,2 °C/12,2 °C | E25: 12,2 °C/12,2 °C/12,2 °C | F25: t | G25: > 50 cm | H25: > 50 cm | I25: > 50 cm
A26: 20. | B26: 7,2 °C/12,8 °C/8,3 °C | C26: 11,1 °C/13,3 °C/11,1 °C | D26: 11,7 °C/12,8 °C/11,7 °C | E26: 12,2 °C/12,2 °C/12,2 °C | F26: t | G26: > 50 cm | H26: > 50 cm | I26: < 1 > 50 cm
A27: 21. | B27: 8,9 °C/12,2 °C/2,2 °C | C27: 10,6 °C/12,8 °C/9,4 °C | D27: 11,1 °C/12,2 °C/10,6 °C | E27: 12,2 °C/12,2 °C/11,7 °C | F27: n | G27: > 50 cm | H27: > 50 cm | I27: < 8 > 50 cm
A28: 22. | B28: 0,0 °C/10,6 °C/5,0 °C | C28: 6,7 °C/10,6 °C/9,4 °C | D28: 8,3 °C/10,0 °C/10,0 °C | E28: 11,1 °C/10,6 °C/10,6 °C | F28: n | G28: > 50 cm | H28: > 50 cm | I28: < 25 > 50 cm
A29: 23. | B29: 4,4 °C/7,8 °C/8,9 °C | C29: 7,2 °C/8,9 °C/8,9 °C | D29: 8,3 °C/8,9 °C/9,4 °C | E29: 10,6 °C/10,0 °C/10,0 °C | F29: t | G29: > 50 cm | H29: > 50 cm | I29: < 32 > 50 cm
A30: 24. | B30: 7,8 °C/10,6 °C/6,7 °C | C30: 9,4 °C/10,6 °C/8,3 °C | D30: 9,4 °C/10,0 °C/9,4 °C | E30: 10,6 °C/10,6 °C/10,6 °C | F30: n | G30: > 50 cm | H30: > 50 cm | I30: < 26 > 50 cm
A31: 25. | B31: 10,0 °C/12,8 °C/9,4 °C | C31: 9,4 °C/11,7 °C/10,6 °C | D31: 9,4 °C/11,1 °C/10,6 °C | E31: 10,0 °C/10,6 °C/10,6 °C | F31: t | G31: > 50 cm | H31: > 50 cm | I31: > 50 cm
A32: 26. | B32: 7,8 °C/13,3 °C/8,9 °C | C32: 9,4 °C/11,7 °C/10,0 °C | D32: 10,0 °C/11,1 °C/10,6 °C | E32: 10,6 °C/10,6 °C/11,1 °C | F32: t | G32: > 50 cm | H32: > 50 cm | I32: < 8 > 50 cm
A33: 27. | B33: 7,2 °C/10,0 °C/4,4 °C | C33: 8,9 °C/10,0 °C/8,3 °C | D33: 9,4 °C/10,0 °C/9,4 °C | E33: 10,6 °C/10,6 °C/10,6 °C | F33: t | G33: > 50 cm | H33: > 50 cm | I33: < 26 > 50 cm
A34: 28. | B34: 3,3 °C/3,9 °C/2,2 °C | C34: 7,2 °C/7,8 °C/6,1 °C | D34: 8,3 °C/8,3 °C/7,2 °C | E34: 10,0 °C/9,4 °C/9,4 °C | F34: t | G34: > 50 cm | H34: > 50 cm | I34: < 3 > 50 cm
A35: 29. | B35: 3,3 °C/4,4 °C/5,6 °C | C35: 5,6 °C/6,7 °C/6,7 °C | D35: 6,7 °C/6,7 °C/7,2 °C | E35: 8,9 °C/8,3 °C/8,3 °C | F35: t | G35: > 50 cm | H35: > 50 cm | I35: > 50 cm
A36: 30. | B36: 14,4 °C/18,3 °C/8,3 °C | C36: 9,4 °C/11,1 °C/9,4 °C | D36: 8,9 °C/10,0 °C/9,4 °C | E36: 8,3 °C/8,9 °C/9,4 °C | F36: n | G36: > 50 cm | H36: > 50 cm | I36: 9 cm
A37: 31. | B37: 2,2 °C/12,2 °C/3,9 °C | C37: 6,1 °C/8,9 °C/6,7 °C | D37: 7,2 °C/8,3 °C/7,8 °C | E37: 9,4 °C/7,2 °C/7,2 °C | F37: n | G37: > 50 cm | H37: > 50 cm
B39: Werte von 7 Uhr/14 Uhr/21 Uhr MEZ
B41: Mit Gelb markiert ist der Temperaturbereich des Erdbodens.
B43: Anzeige Zentibar (cb) | C43: Bodenbedingungen
B44: 0-20 | C44: Alle Böden sind ausreichend nass. Keine Bewässerung nötig.
B45: 20-40 | C45: Leichte Böden trocknen aus und brauchen Bewässerung, mittelschwere Böden sind gerade noch ausreichend feucht.
B46: 40-60 | C46: Leichte und mittelschwere Böden brauchen bei Pflanzen mit Hauptwurzeln in Sensortiefe Bewässerung. Schwere Böden sind gerade noch ausreichend feucht.
B47: 60-100 | C47: Alle Bodensorten brauchen bei Pflanzen mit Hauptwurzeln in Sensortiefe Bewässerung. Büsche zeigen auf leichten und steinigen Böden Trockenstress.
B48: 100-200 | C48: Trockener Boden. Ohne Bewässerung gibt es bei mitteltief wurzelnden Pflanzen (bis Buschgröße) bereits Trockenschäden auf allen Bodensorten.
